bitfinex/quotes_ETHUSD_20240604
["timestamp","ask_amount","ask_price","bid_price","bid_amount"]
[1717493914595,0.808,3758.4,3758.2,0.04170096]
[1717493914801,2.66078,3758.3,3757.6,0.55713027]
[1717493915003,2.66078,3758.3,3757.6,1.48170639]
[1717493915209,2.66078,3758.3,3757.7,0.95367862]
[1717493915496,2.66078,3758.3,3757.8,0.92457612]
[1717493917722,2.66102,3758.0,3757.8,0.92457612]
[1717493917883,2.66113,3757.8,3757.1,0.55713027]
[1717493918062,0.808,3757.6,3757.1,1.48182589]
[1717493918269,1.39008103,3758.7,3756.9,0.83569541]
[1717493918270,0.808,3757.4,3757.2,0.92469562]
[1717493918575,0.808,3757.4,3756.7,1.9441737]
[1717493918775,0.808,3757.4,3756.7,2.86895431]
[1717493918975,0.808,3757.4,3756.8,0.92478061]
[1717493919233,0.808,3757.4,3756.6,2.4254]
[1717493919234,0.808,3757.4,3756.9,0.92478061]
[1717493919406,5.12714,3757.5,3756.7,4.38704343]
[1717493919701,5.12714,3757.5,3756.8,2.04256428]
[1717493920079,5.12714,3757.5,3756.8,1.11775737]
[1717493922820,5.12714,3757.5,3756.6,3.2334]
[1717493922991,5.12714,3757.5,3756.7,0.92481546]
[1717493923202,5.12714,3757.5,3756.6,3.2334]
[1717493924089,5.12714,3757.5,3756.6,2.4254]
[1717493924325,5.12714,3757.5,3756.6,3.2334]
[1717493924530,5.12714,3757.5,3756.7,0.62334]
[1717493926500,2.66157,3757.2,3756.3,3.6531244]
[1717493926799,2.66157,3757.2,3756.4,1.73282238]
[1717493927018,2.66157,3757.2,3756.3,3.6531244]
[1717493927218,2.66157,3757.2,3756.3,2.2659]
[1717493927418,2.66157,3757.2,3756.4,0.92932503]
[1717493927899,2.66157,3757.2,3756.4,1.73732503]
[1717493928099,2.66157,3757.2,3756.4,36.73732503]
[1717493928722,2.66157,3757.2,3756.5,0.0424091]
[1717493931590,2.66157,3757.2,3756.6,0.808]
[1717493931796,2.66157,3757.2,3756.6,0.40456341]
[1717493932124,2.66157,3757.2,3756.7,0.0424091]
[1717493932526,2.66157,3757.2,3756.6,1.21256341]
[1717493933143,2.66157,3757.2,3756.7,0.0424091]
[1717493933541,2.66157,3757.2,3756.6,1.21256341]
[1717493933714,2.66157,3757.2,3756.8,0.0424091]
[1717493934042,2.66157,3757.2,3756.9,0.0424091]
[1717493934225,2.66157,3757.2,3756.6,1.21256341]
[1717493934399,2.66157,3757.2,3756.7,0.25659794]
[1717493937254,2.66157,3757.2,3756.8,3.0886]
[1717493937420,2.66157,3757.2,3756.9,0.04241337]
[1717493937606,2.66157,3757.2,3757.0,0.808]
[1717493937801,2.66157,3757.2,3757.1,0.04276106]
[1717493939521,2.66157,3757.2,3756.8,3.0886]
[1717493939721,2.66157,3757.2,3757.1,0.04276106]
[1717493939938,2.66157,3757.2,3756.9,0.37073523]
[1717493940137,2.66157,3757.2,3757.1,0.04276106]
[1717493940338,2.66157,3757.2,3756.9,0.37073523]
[1717493940840,2.66157,3757.2,3757.0,0.04276106]
[1717493941962,4.94467,3757.2,3757.0,0.04276106]
[1717493942120,4.94467,3757.2,3756.4,0.808]
[1717493942320,4.94467,3757.2,3757.1,0.04276106]
[1717493942553,4.94467,3757.2,3756.4,0.808]
[1717493942752,4.94467,3757.2,3757.1,0.04276106]
[1717493942935,4.94467,3757.2,3756.4,0.808]
[1717493943467,4.94467,3757.2,3756.5,0.04276106]
[1717493944076,4.94467,3757.2,3756.5,0.42783717]
[1717493944424,4.94467,3757.2,3756.6,0.808]
[1717493944750,4.94467,3757.2,3756.7,0.04282975]
[1717493945137,4.94467,3757.2,3756.6,0.808]
[1717493945333,4.94467,3757.2,3756.8,0.04283405]
[1717493945567,4.94467,3757.2,3756.6,0.808]
[1717493945745,4.94467,3757.2,3756.9,0.04283405]
[1717493945947,4.94467,3757.2,3756.7,0.38551861]
[1717493946143,4.94467,3757.2,3757.0,0.04283405]
[1717493946462,4.94467,3757.2,3757.1,0.04283405]
[1717493946663,4.94467,3757.2,3756.5,0.38507611]
[1717493946877,4.94467,3757.2,3756.6,0.42835696]
[1717493956065,0.4168924,3757.1,3756.6,0.42835696]
[1717493958215,5.75267,3757.2,3756.6,0.42835696]
[1717493958411,5.75267,3757.2,3756.6,0.04283835]
[1717493958713,0.808,3757.0,3756.6,0.04283835]
[1717493960590,2.4321,3756.9,3756.6,0.04283835]
[1717493961442,2.66191,3756.7,3756.6,0.04283835]
[1717493961716,5.684211,3756.7,3756.1,1.3874527]
[1717493961873,5.684211,3756.7,3755.9,0.55713027]
[1717493961874,0.808,3756.5,3756.2,0.04283834]
[1717493962214,0.808,3756.5,3755.9,0.55713027]
[1717493962691,0.808,3756.5,3756.0,0.04283834]
[1717493962898,0.808,3756.5,3756.1,0.92498836]
[1717493963390,0.808,3756.5,3756.2,0.04283834]
[1717493963696,0.808,3756.5,3755.9,0.55713027]
[1717493963877,0.808,3756.5,3756.0,0.04283834]
[1717493964077,5.09401,3756.7,3756.1,0.9249981]
[1717493964304,0.808,3756.6,3756.1,0.9249981]
[1717493964525,0.808,3756.6,3756.2,0.04283834]
[1717493964924,0.808,3756.6,3755.9,1.29365058]
[1717493965194,0.808,3756.6,3756.3,0.04283834]
[1717493965407,0.808,3756.6,3756.0,0.92500452]
[1717493965607,0.808,3756.6,3756.4,0.04283834]
[1717493965807,0.808,3756.6,3755.9,0.73652031]
[1717493965808,0.808,3756.6,3755.9,0.55713027]
[1717493966004,0.808,3756.6,3756.5,0.04283834]
[1717493966221,0.808,3756.6,3755.9,0.55713027]
[1717493966430,0.808,3756.6,3756.5,0.04283834]
[1717493966635,0.808,3756.6,3755.8,0.55713027]
[1717493966831,0.808,3756.6,3756.5,0.04283834]
[1717493967031,0.808,3756.6,3755.8,0.55713027]
[1717493967233,0.808,3756.6,3755.9,0.62509426]
[1717493967545,0.808,3756.6,3756.0,0.92500877]
[1717493968147,0.808,3756.6,3756.1,0.04283834]
[1717493968810,2.66206,3756.5,3755.9,0.62509426]
[1717493969014,2.499,3756.3,3756.2,0.04304448]
[1717493969206,2.499,3756.3,3755.7,1.94464075]
[1717493969560,2.499,3756.3,3755.8,1.69704296]
[1717493969702,2.499,3756.3,3755.9,0.92502734]
[1717493970220,2.499,3756.3,3756.0,0.04304448]
[1717493970745,5.16141,3756.0,3755.6,1.94469761]
[1717493971081,5.16141,3756.0,3755.3,1.94469761]
[1717493971082,1.404941,3755.9,3755.3,1.94469761]
[1717493971262,1.404941,3755.9,3755.2,4.05050734]
[1717493971263,0.808,3755.9,3755.2,4.05050734]
[1717493971545,5.16141,3756.0,3755.3,0.92517805]
[1717493972335,5.16141,3756.0,3755.2,2.66294]
[1717493972663,5.16141,3756.0,3755.3,1.69862849]
[1717493972966,5.16141,3756.0,3755.3,0.77346376]
[1717493973755,5.16141,3756.0,3755.4,0.04304448]
[1717493975641,5.16141,3756.0,3755.2,2.66294]
[1717493975984,5.16141,3756.0,3755.3,0.04304448]
[1717493976874,5.16141,3756.0,3755.1,1.38776131]
[1717493977086,5.16141,3756.0,3755.2,0.55904364]
[1717493978679,0.808,3755.9,3755.2,0.55904364]
[1717493981949,4.92087,3755.8,3755.2,0.04304448]
[1717493982195,0.808,3755.7,3755.2,0.04304448]
[1717493982348,0.808,3755.7,3754.8,4.85897995]
[1717493982553,4.92087,3755.8,3755.3,0.0439078]
[1717493982789,0.808,3755.7,3754.8,2.66319]
[1717493982980,0.808,3755.7,3755.4,0.0439078]
[1717493983214,0.808,3755.7,3754.8,3.47119]
[1717493983351,0.808,3755.7,3755.5,0.0439078]
[1717493983560,0.808,3755.7,3754.8,2.66319]
[1717493983561,2.66271,3755.6,3754.8,2.66319]
[1717493983751,2.66271,3755.6,3754.8,3.52341203]
[1717493986624,2.66271,3755.6,3754.8,4.33141203]
[1717493988221,2.66271,3755.6,3754.8,3.52341203]
[1717493988611,2.3139,3755.5,3754.8,3.52341203]
[1717493989092,2.3139,3755.5,3754.9,0.0439078]
[1717493991830,2.66285,3755.4,3754.6,0.808]
[1717493992034,2.66285,3755.4,3755.0,0.0439078]
[1717493992264,0.808,3755.3,3754.5,3.0]
[1717493992435,0.808,3755.3,3755.1,0.0439078]
[1717493992638,2.3714,3755.2,3754.4,4.96838]
[1717493992959,2.3714,3755.2,3754.4,5.90173103]
[1717493993622,2.3714,3755.2,3754.4,3.59683103]
[1717493994002,2.3714,3755.2,3754.4,2.66348]
[1717493994003,0.808,3755.0,3754.4,2.66348]
[1717493994240,3.1794,3755.2,3754.4,2.66348]
[1717493994644,2.3714,3755.2,3754.4,2.66348]
[1717493996557,3.1794,3755.2,3754.4,2.66348]
[1717494001292,2.66304,3755.1,3754.4,2.66348]
[1717494001591,2.66304,3755.1,3754.1,3.0]
[1717494001592,2.4196,3754.9,3754.1,3.808]
[1717494001887,2.4196,3754.9,3754.2,1.21302803]
[1717494003630,2.4196,3754.9,3754.2,2.02102803]
[1717494003860,2.4196,3754.9,3754.3,0.04317963]
[1717494007425,2.4196,3754.9,3754.3,0.85117963]
[1717494007596,2.4196,3754.9,3754.3,1.24063394]
[1717494007799,2.4196,3754.9,3754.3,0.04317963]
[1717494009735,2.66327,3754.8,3754.1,0.63302803]
[1717494009918,2.66327,3754.8,3754.2,0.04317963]
[1717494010339,0.808,3754.5,3753.7,0.55713027]
[1717494010518,0.808,3754.5,3753.8,0.04317963]
[1717494010719,0.808,3754.5,3753.8,0.83384987]
[1717494010915,2.66346,3754.6,3753.8,0.83384987]
[1717494011115,0.808,3754.5,3753.8,0.83384987]
[1717494011738,2.66354,3754.4,3753.8,0.83384987]
[1717494012539,2.3525,3754.3,3753.8,0.04317963]
[1717494012740,2.3525,3754.3,3753.6,2.66406]
[1717494012913,2.3525,3754.3,3753.7,0.04339435]
[1717494015428,0.41721769,3754.2,3753.7,0.04339435]
[1717494016340,3.47178,3754.1,3753.7,0.04339435]
[1717494016531,2.66378,3754.1,3753.7,0.04339435]
[1717494016733,2.66378,3754.1,3753.8,0.04354898]
[1717494016914,2.66378,3754.1,3753.3,3.808]
[1717494017120,2.66378,3754.1,3753.4,2.05544423]
[1717494017319,2.66352,3754.5,3753.6,2.3894]
[1717494017649,0.41721196,3754.7,3754.4,0.808]
[1717494017853,0.41721196,3754.7,3754.0,2.6638]
[1717494017854,0.41721196,3754.7,3754.6,0.808]
[1717494018142,4.95225,3755.7,3754.6,3.51520833]
[1717494018315,4.95225,3755.7,3754.8,0.808]
[1717494018504,0.808,3755.6,3754.9,0.042785]
[1717494018704,2.66279,3755.5,3754.9,0.042785]
[1717494018904,2.66279,3755.5,3754.6,3.47135]
[1717494019106,0.808,3755.4,3754.7,0.042785]
[1717494019444,3.47101,3755.2,3754.7,0.042785]
[1717494019739,3.47101,3755.2,3754.2,2.66364]
[1717494019906,3.47101,3755.2,3754.3,0.04224371]
[1717494020105,0.808,3754.8,3754.3,0.04224371]
[1717494020327,0.808,3754.8,3754.2,2.66364]
[1717494020545,0.808,3754.8,3754.3,0.0424284]
[1717494020857,0.808,3754.8,3754.2,2.66364]
[1717494021056,0.808,3754.8,3754.4,0.0424198]
[1717494021255,3.47114,3755.0,3754.2,2.66364]
[1717494021431,3.47114,3755.0,3754.5,0.0424198]
[1717494021633,2.66314,3755.0,3754.2,2.66364]
[1717494021827,2.66314,3755.0,3754.3,0.347164]
[1717494022021,2.66314,3755.0,3754.3,0.3895838]
[1717494022222,0.808,3754.9,3754.3,0.0424198]
[1717494022629,0.808,3754.9,3753.8,2.66393]
[1717494022630,2.66329,3754.8,3753.8,2.66393]
[1717494022825,2.66329,3754.8,3754.4,0.04249283]
[1717494022826,3.2319,3754.7,3754.4,0.04249283]
[1717494023156,3.2319,3754.7,3754.5,0.04249283]
[1717494023323,3.2319,3754.7,3753.8,3.47193]
[1717494023520,3.2319,3754.7,3753.9,0.04249283]
[1717494024126,2.66339,3754.6,3753.9,0.04249283]
[1717494026372,2.66339,3754.6,3754.0,0.04249283]
[1717494026873,2.66339,3754.6,3753.7,0.808]
[1717494027103,2.66339,3754.6,3754.1,0.04249283]
[1717494027361,2.66339,3754.6,3754.2,0.04249283]
[1717494027571,2.66339,3754.6,3753.8,0.808]
[1717494027756,2.66339,3754.6,3753.9,0.04222646]
[1717494028354,2.66339,3754.6,3754.0,0.808]
[1717494028546,2.66339,3754.6,3753.8,0.54733984]
[1717494028747,2.66339,3754.6,3754.0,0.808]
[1717494029153,2.66339,3754.6,3754.1,0.04222646]
[1717494031691,2.66339,3754.6,3753.9,0.808]
[1717494031831,2.66339,3754.6,3754.2,0.06443687]
[1717494032036,2.66339,3754.6,3753.9,0.808]
[1717494032551,2.66339,3754.6,3754.0,0.06443687]
[1717494033985,2.66339,3754.6,3753.9,0.808]
[1717494034280,2.66339,3754.6,3754.0,0.06443687]
[1717494038193,2.66339,3754.6,3753.8,1.35533984]
[1717494038194,2.66339,3754.6,3754.1,0.06443687]
[1717494038360,2.66339,3754.6,3753.8,1.35533984]
[1717494038556,2.66339,3754.6,3753.9,0.98986228]
[1717494038788,2.66339,3754.6,3753.9,0.06431657]
[1717494039190,2.66361,3754.4,3753.9,0.06431657]
[1717494039567,5.04661,3754.4,3753.9,0.06431657]
[1717494039792,5.04661,3754.4,3754.0,0.92554627]
[1717494040006,5.04661,3754.4,3753.8,1.35533984]
[1717494040218,5.04661,3754.4,3754.1,0.06431657]
[1717494040516,5.04661,3754.4,3753.8,1.35533984]
[1717494040722,5.04661,3754.4,3754.2,0.06431657]
[1717494040922,5.04661,3754.4,3753.8,1.35533984]
[1717494041121,2.66361,3754.4,3754.3,0.06431657]
[1717494041287,2.66361,3754.4,3753.9,0.64858874]
[1717494041487,2.66361,3754.4,3754.3,0.06431657]
[1717494041985,2.66361,3754.4,3753.8,1.35533984]
[1717494042189,2.66361,3754.4,3753.9,0.98986183]
[1717494042390,2.66361,3754.4,3754.0,0.92554526]
[1717494042825,2.66361,3754.4,3754.1,0.06431657]
[1717494043626,2.66361,3754.4,3754.2,0.06431657]
[1717494043989,2.66361,3754.4,3753.9,0.808]
[1717494044190,2.66361,3754.4,3754.0,0.98985543]
[1717494044390,2.66361,3754.4,3754.0,0.06431657]
[1717494044697,2.66361,3754.4,3753.9,0.808]
[1717494045027,2.66361,3754.4,3754.0,1.11677264]
[1717494045329,2.66361,3754.4,3754.1,0.92552559]
[1717494045513,2.66361,3754.4,3754.0,0.25556358]
[1717494045712,2.66361,3754.4,3754.0,0.19124701]
[1717494045886,2.66361,3754.4,3754.1,0.06431657]
[1717494048150,2.66361,3754.4,3754.1,0.28111994]
[1717494048452,2.66333,3754.7,3754.2,2.3149]
[1717494048957,2.66333,3754.7,3754.3,0.98983482]
[1717494049152,2.66333,3754.7,3754.3,0.06433807]
[1717494049354,2.66333,3754.7,3754.1,0.77393364]
[1717494049521,2.66333,3754.7,3754.2,0.92548846]
[1717494049717,2.66333,3754.7,3754.2,0.98982653]
[1717494050062,2.66333,3754.7,3754.2,0.06433807]
[1717494050530,2.66333,3754.7,3754.3,0.92547431]
[1717494051112,2.66347,3754.5,3754.4,0.06433807]
[1717494051528,2.66347,3754.5,3753.9,1.36513027]
[1717494051745,2.66347,3754.5,3754.0,0.35891476]
[1717494051926,2.66347,3754.5,3754.1,0.98984959]
[1717494052113,2.66347,3754.5,3754.2,0.92551798]
[1717494052869,2.66347,3754.5,3754.3,0.06433807]
[1717494053069,2.66347,3754.5,3754.0,0.91604503]
[1717494053274,2.66347,3754.5,3754.4,0.06433807]
[1717494053449,2.66347,3754.5,3754.1,0.25597404]
[1717494053776,2.66347,3754.5,3754.4,0.06433807]
[1717494054236,2.66347,3754.5,3754.0,0.91604503]
[1717494054436,2.66347,3754.5,3754.4,0.06433807]
[1717494054740,2.66347,3754.5,3754.1,2.4851]
[1717494054961,2.66347,3754.5,3754.4,0.06421351]
[1717494055575,2.66347,3754.5,3754.1,2.4851]
[1717494055874,2.66347,3754.5,3754.2,0.98970675]
[1717494056073,2.66347,3754.5,3754.3,0.92549324]
[1717494056368,2.66347,3754.5,3754.4,0.06421351]
[1717494056962,2.66347,3754.5,3754.1,3.04223027]
[1717494057144,2.66347,3754.5,3754.4,0.06421351]
[1717494057349,2.66347,3754.5,3754.2,0.50448404]
[1717494057547,2.66347,3754.5,3754.4,0.06421351]
[1717494057746,2.66347,3754.5,3754.4,0.92546573]
[1717494057972,2.66347,3754.5,3754.4,0.06421351]
[1717494058336,2.66347,3754.5,3754.4,0.98967821]
[1717494058538,2.66347,3754.5,3754.4,0.06421351]
[1717494058737,2.66347,3754.5,3754.1,3.85023027]
[1717494058937,2.66347,3754.5,3754.2,0.92546949]
[1717494059160,2.66347,3754.5,3754.2,0.989683]
[1717494059345,2.66347,3754.5,3754.3,0.92546949]
[1717494059840,2.66347,3754.5,3754.4,0.06421351]
[1717494060268,2.66326,3754.8,3754.4,0.06421351]
[1717494060436,2.66326,3754.8,3754.1,1.57825555]
[1717494060636,2.66326,3754.8,3754.5,0.06421351]
[1717494060879,2.66326,3754.8,3754.1,1.57825555]
[1717494061081,2.66326,3754.8,3754.6,0.06421351]
[1717494061378,2.66326,3754.8,3754.1,0.55713027]
[1717494061543,2.66326,3754.8,3754.1,1.48259178]
[1717494061876,2.66326,3754.8,3754.2,0.06421351]
[1717494062053,2.66326,3754.8,3754.2,1.54680529]
[1717494062282,2.66326,3754.8,3754.3,0.92546151]
[1717494062679,2.66326,3754.8,3754.4,0.98964495]
[1717494062882,2.66326,3754.8,3754.4,0.06418344]
[1717494063434,2.66326,3754.8,3754.1,1.61611022]
[1717494063568,2.66326,3754.8,3754.5,0.06418344]
[1717494063920,2.66326,3754.8,3754.1,1.61611022]
[1717494064074,2.66326,3754.8,3754.6,0.06418344]
[1717494064274,2.66326,3754.8,3754.2,0.55713027]
[1717494064474,2.66326,3754.8,3754.7,0.06418344]
[1717494064689,2.66326,3754.8,3754.2,0.55713027]
[1717494064890,2.66326,3754.8,3754.7,0.06418344]
[1717494065125,2.66326,3754.8,3754.2,0.55713027]
[1717494065322,2.66326,3754.8,3754.7,0.06418344]
[1717494065525,2.66326,3754.8,3754.3,0.55713027]
[1717494065673,4.10765546,3755.3,3754.7,0.06418344]
[1717494065674,2.66303,3755.2,3754.7,0.06418344]
[1717494065880,2.66303,3755.2,3754.8,0.9253668]
[1717494066074,2.66303,3755.2,3754.8,0.06418773]
[1717494066323,2.66303,3755.2,3754.9,0.9253668]
[1717494066819,2.66303,3755.2,3755.0,0.98955453]
[1717494067002,2.66303,3755.2,3755.0,0.06418773]
[1717494067202,2.66303,3755.2,3754.7,0.7368944]
[1717494067420,2.66303,3755.2,3754.8,1.36639745]
[1717494067619,2.66303,3755.2,3754.9,0.92532556]
[1717494068009,2.66303,3755.2,3754.8,0.37688416]
[1717494068390,2.66303,3755.2,3754.7,0.17976413]
[1717494068624,2.66303,3755.2,3754.9,0.06418773]
[1717494068805,2.66303,3755.2,3754.7,0.17976413]
[1717494069000,2.66303,3755.2,3754.8,0.92532729]
[1717494069218,2.66303,3755.2,3754.9,0.06418773]
[1717494069597,2.66303,3755.2,3754.7,0.17976413]
[1717494069794,2.66303,3755.2,3754.8,1.0798241]
[1717494070023,2.66303,3755.2,3754.9,0.92533466]
[1717494070331,2.66303,3755.2,3754.8,0.15448944]
[1717494070493,2.66303,3755.2,3755.0,0.06418773]
[1717494070694,2.66303,3755.2,3754.7,0.17976413]
[1717494071192,2.66303,3755.2,3754.8,0.06418773]
[1717494073450,2.66311,3755.0,3754.8,0.06418773]
[1717494073816,2.66311,3755.0,3754.4,0.55713027]
[1717494074143,2.66311,3755.0,3754.5,0.06418773]
[1717494074305,2.66311,3755.0,3754.6,0.92538384]
[1717494074503,2.66311,3755.0,3754.6,0.98944271]
[1717494075055,2.66311,3755.0,3754.6,0.06405887]
[1717494075712,3.237471,3755.0,3754.7,0.0639472]
[1717494075922,3.237471,3755.0,3754.0,0.55713027]
[1717494075923,2.3071,3754.3,3754.0,0.55713027]
[1717494076105,2.3071,3754.3,3753.7,0.55713027]
[1717494076106,0.808,3754.1,3753.7,0.55713027]
[1717494076455,2.3071,3754.3,3753.6,1.38825177]
[1717494076456,3.1151,3754.3,3753.6,1.38825177]
[1717494076620,3.1151,3754.3,3753.7,0.9256227]
[1717494077658,2.3071,3754.3,3753.7,0.9256227]
[1717494078780,2.3071,3754.3,3753.8,0.06188162]
[1717494079294,2.3071,3754.3,3753.6,1.96266802]
[1717494079499,2.3071,3754.3,3753.9,0.06188162]
[1717494079671,2.3071,3754.3,3753.7,0.27983634]
[1717494079852,2.3071,3754.3,3754.0,0.06188162]
[1717494080058,2.3071,3754.3,3753.7,0.27983634]
[1717494080262,2.66355,3754.4,3754.1,0.06188162]
[1717494080666,2.66355,3754.4,3753.8,3.1952]
[1717494080863,2.66355,3754.4,3754.2,0.06218232]
[1717494081094,2.66355,3754.4,3753.8,3.1952]
[1717494081311,2.66355,3754.4,3754.3,0.06218232]
[1717494081514,2.66355,3754.4,3753.8,3.1952]
[1717494081659,2.66355,3754.4,3754.3,0.06218232]
[1717494081977,2.66355,3754.4,3753.8,3.1952]
[1717494082176,2.66355,3754.4,3754.3,0.06218232]
[1717494082594,2.66355,3754.4,3753.8,2.3872]
[1717494082930,2.66355,3754.4,3753.9,0.92553151]
[1717494083206,2.66355,3754.4,3753.9,0.98771383]
[1717494083418,2.66355,3754.4,3753.9,0.06218232]
[1717494084314,2.66355,3754.4,3753.9,1.41845022]
[1717494084768,2.66355,3754.4,3753.9,0.61045022]
[1717494089841,2.66355,3754.4,3753.9,1.41845022]
[1717494090235,2.66331,3754.8,3753.9,1.41845022]
[1717494090715,2.66331,3754.8,3753.9,1.47172143]
[1717494090898,2.66331,3754.8,3754.0,0.92550517]
[1717494091416,2.66331,3754.8,3754.1,0.06256462]
[1717494092025,2.66331,3754.8,3753.9,1.3562679]
[1717494092235,2.66331,3754.8,3754.2,0.06256462]
[1717494092522,2.66331,3754.8,3754.0,1.38352908]
[1717494092523,2.66331,3754.8,3754.3,0.06256462]
[1717494092708,2.66331,3754.8,3754.0,0.45804345]
[1717494092912,7.32,3755.1,3754.4,2.46186462]
[1717494093081,7.32,3755.1,3754.5,1.13498646]
[1717494093284,7.32,3755.1,3754.7,0.808]
[1717494093703,7.32,3755.1,3754.8,0.0624787]
[1717494093909,2.3023,3755.4,3754.8,0.0624787]
[1717494094918,3.47074,3755.6,3754.8,0.0624787]
[1717494095217,3.47074,3755.6,3754.8,0.32102416]
[1717494095733,2.66274,3755.6,3754.9,0.808]
[1717494096016,2.66274,3755.6,3754.9,0.06169697]
[1717494096237,2.3739,3755.5,3754.9,0.06169697]
[1717494096396,2.3739,3755.5,3754.7,0.808]
[1717494096591,2.3739,3755.5,3754.8,0.30801061]
[1717494096893,2.3739,3755.5,3754.8,0.36970758]
[1717494100144,2.66274,3755.6,3754.8,0.36970758]
[1717494100364,2.66274,3755.6,3754.9,2.3558]
[1717494101019,2.66274,3755.6,3755.0,0.06169697]
[1717494101221,0.808,3755.4,3755.0,0.06169697]
[1717494101636,0.808,3755.4,3755.1,0.06169697]
[1717494101857,4.043324,3755.6,3754.5,3.42168646]
[1717494102001,4.043324,3755.6,3755.2,0.06169697]
[1717494102201,4.043324,3755.6,3754.5,4.48270098]
[1717494102407,3.47074,3755.6,3754.6,1.75736178]
[1717494102631,3.47074,3755.6,3754.6,0.8320311]
[1717494103107,3.47074,3755.6,3754.6,1.6400311]
[1717494105258,3.47074,3755.6,3754.7,0.05326039]
[1717494105850,3.47074,3755.6,3754.8,0.06169697]
[1717494107782,3.47074,3755.6,3754.6,1.57833413]
[1717494107980,3.47074,3755.6,3754.9,0.06176567]
[1717494108186,3.47074,3755.6,3754.7,0.84736754]
[1717494108381,3.47074,3755.6,3755.0,0.06176567]
[1717494108699,3.47074,3755.6,3755.1,0.06176567]
[1717494108845,3.47074,3755.6,3754.7,0.84736754]
[1717494109192,2.66274,3755.6,3754.8,1.40277252]
[1717494111793,2.66274,3755.6,3754.9,2.66317]
[1717494112090,2.2653,3755.9,3755.1,2.66302]
[1717494112396,2.2653,3755.9,3755.4,0.808]
[1717494112596,2.66247,3756.0,3755.4,0.808]
[1717494112801,2.2504,3756.1,3755.5,0.06173562]
[1717494113003,4.94868,3756.4,3755.8,0.808]
[1717494113304,4.94868,3756.4,3755.9,0.0616111]
[1717494113305,2.2865,3756.4,3755.9,0.0616111]
[1717494113853,2.4858,3756.7,3755.9,0.0616111]
[1717494114565,2.4858,3756.7,3756.0,0.808]
[1717494114877,2.4858,3756.7,3756.1,0.0616111]
[1717494115308,2.6619,3756.8,3756.2,0.808]
[1717494115525,2.6619,3756.8,3756.2,0.86927628]
[1717494115701,2.2782,3757.1,3756.2,0.86927628]
[1717494116224,2.2782,3757.1,3756.3,2.66218]
[1717494116411,2.2782,3757.1,3756.3,3.01532563]
[1717494116580,2.416,3757.3,3756.4,0.808]
[1717494116787,2.416,3757.3,3756.4,0.86927628]
[1717494117314,2.416,3757.3,3756.5,2.4256]
[1717494117740,2.416,3757.3,3756.6,0.06127628]
[1717494118258,2.416,3757.3,3756.6,0.69229647]
[1717494118439,2.416,3757.3,3756.6,3.35424647]
[1717494120141,0.808,3757.5,3756.6,3.35424647]
[1717494120305,4.95501,3757.6,3756.6,3.35424647]
[1717494120505,2.66141,3757.4,3756.6,2.72322628]
[1717494120719,0.808,3757.3,3756.6,0.06127628]
[1717494120961,2.66107,3757.9,3756.5,7.88491]
[1717494121181,3.0,3758.1,3756.8,0.808]
[1717494121182,2.66125,3757.7,3756.8,0.808]
[1717494121748,2.66125,3757.7,3757.0,0.808]
[1717494121946,2.668925,3757.6,3756.9,0.06030196]
[1717494122235,0.808,3757.5,3756.6,0.808]
[1717494122418,0.808,3757.5,3757.0,0.06030196]
[1717494122636,0.808,3757.3,3757.1,0.06030196]
[1717494122843,0.808,3757.3,3756.5,5.08491]
[1717494123041,2.3993,3757.0,3756.6,0.06030196]
[1717494123374,2.3993,3757.0,3756.1,3.4703]
[1717494123577,2.3993,3757.0,3756.7,0.06026335]
[1717494123789,2.3993,3757.0,3756.1,3.4703]
[1717494123945,2.66176,3756.9,3756.8,0.06026335]
[1717494124130,2.66176,3756.9,3755.7,2.6626]
[1717494124131,2.662,3756.6,3755.7,2.6626]
[1717494124331,0.808,3756.2,3755.3,2.66287]
[1717494125228,0.808,3756.2,3755.3,3.47087]
[1717494125624,2.66234,3756.1,3755.3,3.47087]
[1717494125963,2.66234,3756.1,3755.3,2.66287]
[1717494126937,2.66234,3756.1,3755.3,0.266287]
[1717494127127,2.66234,3756.1,3754.9,2.66314]
[1717494127327,2.66258,3755.8,3754.9,2.66314]
[1717494127529,5.12888,3755.8,3754.9,2.66314]
[1717494128042,5.12888,3755.8,3754.5,2.66345]
[1717494129885,2.6628,3755.5,3754.5,2.66345]
[1717494130071,2.6628,3755.5,3754.6,0.81996553]
[1717494136448,2.4663,3755.8,3754.3,0.27750534]
[1717494136654,2.66299,3755.2,3754.3,0.27750534]
[1717494138653,2.66299,3755.2,3754.4,0.06181293]
[1717494149565,3.47199,3755.2,3754.4,0.06181293]
[1717494149901,2.3143,3754.9,3754.4,0.06181293]
[1717494150103,2.3143,3754.9,3754.4,0.44301476]
[1717494152502,2.4678,3755.3,3754.4,0.44301476]
[1717494153208,2.4678,3755.3,3754.4,3.10654476]
[1717494156008,2.4678,3755.3,3754.5,0.809]
[1717494156503,2.4678,3755.3,3754.6,0.06084766]
[1717494156838,2.4678,3755.3,3754.6,0.72205614]
[1717494164374,2.66289,3755.4,3754.6,0.72205614]
[1717494166081,2.66289,3755.4,3754.7,2.453]
[1717494166421,2.66289,3755.4,3754.8,0.06074026]
[1717494167983,2.66289,3755.4,3754.6,0.66120848]
[1717494168194,2.66289,3755.4,3754.9,0.06074026]
[1717494168396,2.66289,3755.4,3754.5,3.1974]
[1717494168599,2.66289,3755.4,3755.0,0.06074026]
[1717494168796,2.66289,3755.4,3754.5,3.1974]
[1717494169289,2.66289,3755.4,3754.5,4.58542896]
[1717494169590,2.66289,3755.4,3754.6,0.9072199]
[1717494169791,2.66289,3755.4,3754.6,1.8325725]
[1717494170009,2.66289,3755.4,3754.6,0.06074026]
[1717494170405,3.47189,3755.4,3754.6,0.06074026]
[1717494170708,2.4094,3755.1,3754.6,0.06074026]
[1717494171636,5.07247,3755.1,3754.3,3.03167313]